Cogmind - Beta 16 @@@ ROGUE MODE // 2026.01.24 @ 17:37:51 Player: PE-P51_RE Result: Destroyed by S-27 Virus with Autogun Performance ------------- Evolutions (4) 2000 Regions Visited (7) 1400 Robots Destroyed (0) 0 Value Destroyed (0) 0 Prototype IDs (0) 0 Alien Tech Used (0) 0 Bonus (1350) 1350 TOTAL SCORE: 4750 Bonus ------- Pacifist 1325 Follower Combat Kills 25 Cogmind --------- Core Integrity 0/850 Matter 300/300 Energy 99/100 System Corruption 1% Temperature Cool (0) Movement Core (50) Location -6/Lower Caves Parts ------- > --- POWER (9) -------- (None) > --- PROPULSION (2) --- (None) > --- UTILITY (2) ------ (None) > --- WEAPON (2) ------- (None) > --- INVENTORY (5) ---- (None) Peak State ------------ None Favorites ----------- Power None Propulsion None Utility None Weapon None Build | -11 -10 -9 -9 -8 -7 -6 -6 ------- Run | Yrd Mat Mat Min Mat Fac Fac Low Slots Evolved 8 | . . 2 . 2 2 2 . Power 8 | . . 2 . 2 2 2 . Propulsion . | . . . . . . . . Utility . | . . . . . . . . Weapon . | . . . . . . . . Parts Attached . | . . . . . . . . Power . | . . . . . . . . Engine . | . . . . . . . . Core . | . . . . . . . . Reactor . | . . . . . . . . Propulsion . | . . . . . . . . Treads . | . . . . . . . . Leg . | . . . . . . . . Wheel . | . . . . . . . . Hover . | . . . . . . . . Flight . | . . . . . . . . Utility . | . . . . . . . . Device . | . . . . . . . . Storage . | . . . . . . . . Processor . | . . . . . . . . Hackware . | . . . . . . . . Protection . | . . . . . . . . Artifact . | . . . . . . . . Weapon . | . . . . . . . . Energy Gun . | . . . . . . . . Energy Cannon . | . . . . . . . . Ballistic Gun . | . . . . . . . . Ballistic Cannon . | . . . . . . . . Launcher . | . . . . . . . . Special Weapon . | . . . . . . . . Impact Weapon . | . . . . . . . . Slashing Weapon . | . . . . . . . . Piercing Weapon . | . . . . . . . . Special Melee Weapon . | . . . . . . . . Unidentified Prototypes . | . . . . . . . . Parts Lost . | . . . . . . . . Power . | . . . . . . . . Propulsion . | . . . . . . . . Utility . | . . . . . . . . Weapon . | . . . . . . . . Highest Loss Streak . | . . . . . . . . To Critical Strikes . | . . . . . . . . Average Backups . | . . . . . . . . Power . | . . . . . . . . Propulsion . | . . . . . . . . Utility . | . . . . . . . . Weapon . | . . . . . . . . Tool/Special . | . . . . . . . . Unused Backups . | . . . . . . . . Power . | . . . . . . . . Propulsion . | . . . . . . . . Utility . | . . . . . . . . Weapon . | . . . . . . . . Tool/Special . | . . . . . . . . Average Slot Usage (%) . | . . . . . . . . Peak Build Rating . | . . . . . . . . Average Rating . | . . . . . . . . On Entrance . | . . . . . . . . Avg Prop Armor Cover (%) . | . . . . . . . . Naked Turns 791 | . 29 92 260 65 181 92 72 Heaviest Build . | . . . . . . . . Greatest Support 3 | 3 3 3 3 3 3 3 3 Greatest Overweight (x) . | . . . . . . . . Average Overweight (x) . | . . . . . . . . Largest Inventory Capacity 5 | 5 5 5 5 5 5 5 5 Average Capacity 5 | 5 5 5 5 5 5 5 5 Most Carried . | . . . . . . . . Average Carried . | . . . . . . . . Final Capacity 5 | 5 5 5 5 5 5 5 5 Final Carried . | . . . . . . . . Class Distribution -------------------- 100% | Mutant Dominant Class ---------------- Mutant | -10/Materials Mutant | -9/Materials Mutant | -9/Mines Mutant | -8/Materials Mutant | -7/Factory Mutant | -6/Factory Mutant | -6/Lower Caves Resources | -11 -10 -9 -9 -8 -7 -6 -6 ----------- Run | Yrd Mat Mat Min Mat Fac Fac Low Matter Collected 163 | . . . 84 79 . . . Remotely . | . . . . . . . . Salvage Created . | . . . . . . . . Parts . | . . . . . . . . Haulers Intercepted . | . . . . . . . . Recyclers Shooed . | . . . . . . . . Parts Field Recycled . | . . . . . . . . Retrieved Matter . | . . . . . . . . Parts Self-Destructed . | . . . . . . . . Prevented . | . . . . . . . . Parts Restored . | . . . . . . . . Kills | -11 -10 -9 -9 -8 -7 -6 -6 ------- Run | Yrd Mat Mat Min Mat Fac Fac Low Combat Hostiles Destroyed . | . . . . . . . . Classes Destroyed . | . . . . . . . . Best Kill Streak . | . . . . . . . . Combat Bots Only . | . . . . . . . . Max Kills in Single Turn . | . . . . . . . . Gunslinging . | . . . . . . . . Exploded . | . . . . . . . . Melee . | . . . . . . . . Uniques/NPCs Destroyed . | . . . . . . . . Combat | -11 -10 -9 -9 -8 -7 -6 -6 -------- Run | Yrd Mat Mat Min Mat Fac Fac Low Hostile Shots Fired 213 | . 12 25 11 39 49 9 68 Missed 84 | . 4 6 4 17 24 3 26 Hits 129 | . 8 19 7 22 25 6 42 Melee 1 | . . . 1 . . . . Projectile 128 | . 8 19 6 22 25 6 42 Damage Taken 1716 | . 72 279 105 193 215 195 657 Core 1716 | . 72 279 105 193 215 195 657 Absorbed by Shields . | . . . . . . . . Core Remaining (%) 61 | 100 71 . 4 64 69 . . Volleys Fired . | . . . . . . . . Largest . | . . . . . . . . Hottest . | . . . . . . . . Shots Fired . | . . . . . . . . Gun . | . . . . . . . . Cannon . | . . . . . . . . Launcher . | . . . . . . . . Special . | . . . . . . . . Kinetic . | . . . . . . . . Thermal . | . . . . . . . . Explosive . | . . . . . . . . Electromagnetic . | . . . . . . . . Robot Hit Streak . | . . . . . . . . Robot Miss Streak . | . . . . . . . . Penetration Max . | . . . . . . . . Secondary Targets . | . . . . . . . . Shots Hit Robots . | . . . . . . . . Core Hits 6 | . 1 1 1 . 1 . 2 Critical Kills . | . . . . . . . . Critical Parts Destroyed . | . . . . . . . . Critical Strikes . | . . . . . . . . Melee Attacks . | . . . . . . . . Impact . | . . . . . . . . Slashing . | . . . . . . . . Piercing . | . . . . . . . . Sneak Attacks . | . . . . . . . . Combat Hostiles . | . . . . . . . . Follow-up Attacks . | . . . . . . . . Damage Inflicted 79 | 1 11 38 8 . 9 5 7 Guns . | . . . . . . . . Cannons . | . . . . . . . . Explosions . | . . . . . . . . Melee . | . . . . . . . . Ramming 79 | 1 11 38 8 . 9 5 7 Kinetic . | . . . . . . . . Thermal . | . . . . . . . . Explosive . | . . . . . . . . Electromagnetic . | . . . . . . . . Impact . | . . . . . . . . Slashing . | . . . . . . . . Piercing . | . . . . . . . . Highest Corruption 1 | . . . . . 1 1 1 Average Corruption 1 | . . . . . 1 1 1 Corruption Purged . | . . . . . . . . Corruption Blocked . | . . . . . . . . Effects 1 | . . . . . 1 . . Message Errors 1 | . . . . . 1 . . Overload Shots . | . . . . . . . . Overflow Damage . | . . . . . . . . Projectiles . | . . . . . . . . Explosions . | . . . . . . . . Melee . | . . . . . . . . Knockbacks . | . . . . . . . . Impact . | . . . . . . . . Kinetic . | . . . . . . . . Secondary . | . . . . . . . . Self-Inflicted Damage 35 | . 5 18 3 . 4 2 3 Shots . | . . . . . . . . Rammed 18 | 1 2 5 2 . 3 1 4 Targets Rammed 18 | 1 2 5 2 . 3 1 4 Kicked . | . . . . . . . . Crushed . | . . . . . . . . Highest Temperature . | . . . . . . . . Average Temperature . | . . . . . . . . Received Heat Transfer 249 | . 12 129 39 18 42 . 9 Siege Activations . | . . . . . . . . Martial Activations . | . . . . . . . . Shielding Activations . | . . . . . . . . Robots Disrupted . | . . . . . . . . Combat Hostiles . | . . . . . . . . Robots Corrupted . | . . . . . . . . Combat Hostiles . | . . . . . . . . Parts Fried . | . . . . . . . . Impact Corruptions . | . . . . . . . . Robots Melted . | . . . . . . . . Combat Hostiles . | . . . . . . . . Parts Melted . | . . . . . . . . Heat Transferred . | . . . . . . . . Parts Sabotaged . | . . . . . . . . Parts Stolen . | . . . . . . . . Parts Stripped . | . . . . . . . . Power Chain Reactions . | . . . . . . . . Alert | -11 -10 -9 -9 -8 -7 -6 -6 ------- Run | Yrd Mat Mat Min Mat Fac Fac Low Maximum Alert Level . | . . . . . . . . Low Security (%) 100 | 100 100 100 100 100 100 100 . Level 1 . | . . . . . . . . Level 2 . | . . . . . . . . Level 3 . | . . . . . . . . Level 4 . | . . . . . . . . Level 5 . | . . . . . . . . High Security . | . . . . . . . . Max Security . | . . . . . . . . Peak Influence 115 | . . 15 50 115 52 60 . Initial 47 | . . . 5 15 47 15 . Average 14 | . . 1 5 31 31 15 . Influence Increases 494 | . . 22 82 120 75 90 105 Destroy 0b10 Robot/C 20 | . . . 20 . . . . Allied During Kill 2 | . . . 2 . . . . Successful Hack 7 | . . 7 . . . . . Partial Spotted 30 | . . . . . 15 15 . Lose Combat Pursuer 435 | . . 15 60 120 60 75 105 Influence Decreases 382 | . . 7 57 55 148 62 53 Entered New Map 133 | . . . 10 25 58 17 23 Time Decay 227 | . . 7 35 30 90 35 30 Lost Ally 22 | . . . 12 . . 10 . Squads Dispatched 7 | . 2 2 . . 2 1 . Investigation 1 | . . . . . . 1 . Extermination . | . . . . . . . . Reinforcement 6 | . 2 2 . . 2 . . Assault . | . . . . . . . . Garrison . | . . . . . . . . Intercept . | . . . . . . . . Searches Triggered . | . . . . . . . . Construction Impeded . | . . . . . . . . Haulers Reinforced . | . . . . . . . . Active Scanning Responses . | . . . . . . . . Cargo Convoy Interrupts . | . . . . . . . . Stealth | -11 -10 -9 -9 -8 -7 -6 -6 --------- Run | Yrd Mat Mat Min Mat Fac Fac Low Distress Signals 3 | . 1 . . 2 . . . Communications Jammed . | . . . . . . . . Distress Signals . | . . . . . . . . Times Spotted 72 | . 7 11 6 22 6 7 13 Peak Tracking Total 19 | . 8 7 5 19 5 6 10 Tactical Retreats 11 | . . 1 2 2 2 2 2 Traps | -11 -10 -9 -9 -8 -7 -6 -6 ------- Run | Yrd Mat Mat Min Mat Fac Fac Low Traps Triggered . | . . . . . . . . Indirectly . | . . . . . . . . Trap Hack Attempts . | . . . . . . . . Triggered . | . . . . . . . . Disarmed . | . . . . . . . . Reprogrammed . | . . . . . . . . Reused . | . . . . . . . . Traps Extracted . | . . . . . . . . Installed . | . . . . . . . . Triggered . | . . . . . . . . Machines | -11 -10 -9 -9 -8 -7 -6 -6 ---------- Run | Yrd Mat Mat Min Mat Fac Fac Low Machines Disabled . | . . . . . . . . Max in Single Turn . | . . . . . . . . Machines Repaired . | . . . . . . . . Machines Dismantled . | . . . . . . . . Machines Sabotaged . | . . . . . . . . Overloaded Fab Kills . | . . . . . . . . Hacking | -11 -10 -9 -9 -8 -7 -6 -6 --------- Run | Yrd Mat Mat Min Mat Fac Fac Low Machines Accessed 4 | . . 1 . 1 . 2 . Terminals 4 | . . 1 . 1 . 2 . Fabricators . | . . . . . . . . Repair Stations . | . . . . . . . . Recycling Units . | . . . . . . . . Scanalyzers . | . . . . . . . . Garrison Access . | . . . . . . . . Total Hacks 8 | . . 1 . 3 . 4 . Successful 1 | . . 1 . . . . . Failed 7 | . . . . 3 . 4 . Catastrophic 1 | . . . . . . 1 . Database Lockouts . | . . . . . . . . Manual 4 | . . . . 3 . 1 . Terminals 8 | . . 1 . 3 . 4 . Fabricators . | . . . . . . . . Repair Stations . | . . . . . . . . Recycling Units . | . . . . . . . . Scanalyzers . | . . . . . . . . Garrison Access . | . . . . . . . . Terminal Hacks 1 | . . 1 . . . . . Branch Access Points 1 | . . 1 . . . . . Fabricator Hacks . | . . . . . . . . Repair Station Hacks . | . . . . . . . . Recycling Unit Hacks . | . . . . . . . . Scanalyzer . | . . . . . . . . Garrison Access Hacks . | . . . . . . . . Unauthorized Hacks . | . . . . . . . . Terminals . | . . . . . . . . Fabricators . | . . . . . . . . Repair Stations . | . . . . . . . . Recycling Units . | . . . . . . . . Scanalyzers . | . . . . . . . . Garrison Access . | . . . . . . . . Data Cores Recovered . | . . . . . . . . Used . | . . . . . . . . Hacking Detections 4 | . . 1 . 1 . 2 . Full Trace Events 1 | . . . . . . 1 . Feedback Events . | . . . . . . . . Feedback Blocked . | . . . . . . . . Robot Schematics Acquired . | . . . . . . . . Robots Built . | . . . . . . . . Authchips . | . . . . . . . . Time . | . . . . . . . . Total Robot Build Rating . | . . . . . . . . Part Schematics Acquired . | . . . . . . . . Parts Built . | . . . . . . . . Authchips . | . . . . . . . . Time . | . . . . . . . . Total Part Build Rating . | . . . . . . . . Part Studies Acquired . | . . . . . . . . Parts Repaired . | . . . . . . . . Time . | . . . . . . . . Parts Recycled . | . . . . . . . . Recycled Matter . | . . . . . . . . Retrieved Matter . | . . . . . . . . Retrieved Components . | . . . . . . . . Parts Scanalyzed . | . . . . . . . . Part Schematics Acquired . | . . . . . . . . Parts Damaged . | . . . . . . . . Bothacking | -11 -10 -9 -9 -8 -7 -6 -6 ------------ Run | Yrd Mat Mat Min Mat Fac Fac Low Used RIF Installer . | . . . . . . . . Robots Hacked . | . . . . . . . . Non-combat . | . . . . . . . . Combat . | . . . . . . . . Robot Hacks Applied . | . . . . . . . . Relay Couplers Released . | . . . . . . . . Fabnet Peak Effective % . | . . . . . . . . Robots Rewired 1 | . . . . . . 1 . Allies Hacked . | . . . . . . . . Hacks Repelled . | . . . . . . . . Allies | -11 -10 -9 -9 -8 -7 -6 -6 -------- Run | Yrd Mat Mat Min Mat Fac Fac Low Total Allies 3 | . . . 2 . . 1 . Largest Group 2 | . . . 2 . . 1 . Highest-Rated Group 45 | . . . 45 . . 40 . Highest-Rated Ally 40 | . . . 31 . . 40 . Total Orders . | . . . . . . . . Ally Attacks 12 | . . . 12 . . . . Total Damage 172 | . . . 172 . . . . Kills 1 | . . . 1 . . . . Allies Corrupted . | . . . . . . . . Allies Melted . | . . . . . . . . Intel | -11 -10 -9 -9 -8 -7 -6 -6 ------- Run | Yrd Mat Mat Min Mat Fac Fac Low Active Infowar (turns) . | . . . . . . . . Robot Analysis Total . | . . . . . . . . Derelict Logs Recovered 1 | . . . 1 . . . . Drone Launches . | . . . . . . . . Drone Recoveries . | . . . . . . . . Exploration | -11 -10 -9 -9 -8 -7 -6 -6 ------------- Run | Yrd Mat Mat Min Mat Fac Fac Low Turns Passed 801 | 10 29 92 260 65 181 92 72 Spaces Moved 1434 | 17 54 174 403 130 344 177 135 Core 1434 | 17 54 174 403 130 344 177 135 Treads . | . . . . . . . . Legs . | . . . . . . . . Wheels . | . . . . . . . . Hover . | . . . . . . . . Flight . | . . . . . . . . Fastest Speed 50 | 50 50 50 50 50 50 50 50 Average Speed 50 | 50 50 50 50 50 50 50 50 Slowest Speed 50 | 50 50 50 50 50 50 50 50 Overloaded Moves . | . . . . . . . . Propulsion Burnouts . | . . . . . . . . Robots Hopped . | . . . . . . . . Potential Cave-ins . | . . . . . . . . Cave-ins Triggered . | . . . . . . . . Exploration Rate (%) 26 | 3 19 29 74 29 14 8 34 Regions Visited 7 Branch Regions 2 Pre-discovered Areas . | . . . . . . . . Known Exits Taken 1 | . . 1 . . . . . Unknown Exits Taken 6 | 1 1 . 1 1 1 1 . Scrap Searched 2 | . . . 2 . . . . Spaces Dug . | . . . . . . . . Terrain Destroyed . | . . . . . . . . Melee . | . . . . . . . . Projectile . | . . . . . . . . AOE . | . . . . . . . . Terrain Rammed . | . . . . . . . . Walls Destroyed . | . . . . . . . . Machines Disabled . | . . . . . . . . Actions | -11 -10 -9 -9 -8 -7 -6 -6 --------- Run | Yrd Mat Mat Min Mat Fac Fac Low Total 1509 | 17 55 178 460 129 352 179 139 Wait 62 | . . . 56 . 6 . . Move 1427 | 16 53 173 402 129 343 176 135 Hop . | . . . . . . . . Pick Up . | . . . . . . . . Fast Attach . | . . . . . . . . Attach . | . . . . . . . . Detach . | . . . . . . . . Swap . | . . . . . . . . Drop . | . . . . . . . . Fire . | . . . . . . . . Melee . | . . . . . . . . Ram 18 | 1 2 5 2 . 3 1 4 Kick . | . . . . . . . . Crush . | . . . . . . . . Escape Stasis . | . . . . . . . . Rewire 2 | . . . . . . 2 . Trap . | . . . . . . . . Miscellaneous . | . . . . . . . . Route ------- -11/Scrapyard -10/Materials -9/Materials -9/Mines -8/Materials -7/Factory -6/Factory -6/Lower Caves (discovered 1 exit: Low) History --------- Turn | Location | Event 4 | -11/Scrapyard | Discovered new exit (range 14) 11 | -11/Scrapyard | Entered Materials 32 | -10/Materials | Discovered new exit (range 15) 40 | -10/Materials | Entered another Materials area 40 | -9/Materials | Evolved 2 slots: Power x2 99 | -9/Materials | Identified exit to Mines 109 | -9/Materials | Core integrity fell below 50% 132 | -9/Materials | Entered Mines 174 | -9/Mines | Learned location of 1 exit from Lower Caves 210 | -9/Mines | Found a damaged Exp. Sensor Array with a note attached 305 | -9/Mines | Build established: Mutant 353 | -9/Mines | Core integrity fell below 20% 388 | -9/Mines | Discovered new exit (range 7) 392 | -9/Mines | Entered Materials 392 | -8/Materials | Evolved 2 slots: Power x2 449 | -8/Materials | Discovered new exit (range 16) 457 | -8/Materials | Entered Factory 457 | -7/Factory | Evolved 2 slots: Power x2 629 | -7/Factory | Discovered new exit (range 16) 638 | -7/Factory | Entered another Factory area 638 | -6/Factory | Evolved 2 slots: Power x2 727 | -6/Factory | Discovered new exit (range 5) 730 | -6/Factory | Entered Lower Caves 731 | -6/Lower Caves | Identified exit to Lower Caves 766 | -6/Lower Caves | Core integrity fell below 50% 776 | -6/Lower Caves | Core integrity fell below 20% 802 | -6/Lower Caves | Destroyed by S-27 Virus with Autogun Last Messages --------------- 00665_ U-05 Engineer works on Pressure Siphon. 00665_ K-01 Serf pushes I-36 Angel. 00667_ Attempting to rewire I-36 Angel. 00667_ I-36 Angel rewired. 00669_ K-01 Serf collects debris. 00670_ U-05 Engineer works on Pressure Siphon. 00685_ U-05 Engineer completes Pressure Siphon. 00697_ Slammed into G-67 Veteran. 00697_ Destabilizing: System corrupted (+1). 00700_ Slug penetrates Wall. 00703_ Knocked back. 00711_ Connecting with Terminal... 00711_ ALERT: Suspicious activity at Terminal F008. Dispatching Investigation squad. 00727_ EXIT=FOUND LOCATION=UNKNOWN GOAL=ESCAPE Loading 1 Lower Caves exit... 00758_ Slammed into S-27 Virus. 00788_ O6-TSV(S) destroyed. Map ----- +----------------------------------------------------+ | ?????????????????????????????????????????????????? | | ?????????????????????????????????????????????????? | | ?????????????????????????????????????????????????? | | ?????????????????????????????????????????????????? | | ??????????????????????????????????????????????? ? | | ??????????????????????????????????????????????# | | ?????????????????????????????????????????????? | | ?????????????????????????????????????????????# | | ?????????????????????????????????????????????# | | ?????????????????????????????????????????????# ? | | ????????????????????????????????????????????? ? | | ????????????????????????????????????????????? ? | | ??????????????????????????????? ????????????# #? | | ?????????????????????????????? ?????????## #? | | ?????????????????????????????? ???????? #? | | ????????????????????????????? ?????###?# !#? | | ????????????????????????????? ?????## ###! #? | | ????????????????????????????# #????## ## | | ???????????????????????????? #????## | | ??????????????????????????## #?##### | | ????????????????????????### ??# ## ## | | ????????????????????????# ???# ######### | | ????????????????????????# ???## ####???????? | | ???????????????????????## #???## ##???#??????? | | ??????????????????????## #??## ###? ### ???? | | ?????????????????????## @ ##?# ## #?? | | ?????????????????"""##" ### ?? | | ????????????????#"""""" ss s ?? | | ????????????????#" s #????? | | ????????????????#"""""" ##????? | | ????????????????#"""##" #?????? | | ??????????????????#??## ???? | | ??????????????????????## ### ???? | | ???????????????????????# ##??? ???? | | ???????????????????????# ## #????? ???? | | ???????????????????????## ####?# #?????? ????? | | ????????????????????????## ##?????##???????????? | | ?????????????????????????# #???????????????????? | | ?????????????????????????# ##???????????????????? | | ?????????????????????????####????????????????????? | | ?????????????????????????????????????????????????? | | ?????????????????????????????????????????????????? | | ?????????????????????????????????????????????????? | | ?????????????????????????????????????????????????? | | ?????????????????????????????????????????????????? | | ?????????????????????????????????????????????????? | | ?????????????????????????????????????????????????? | | ?????????????????????????????????????????????????? | | ?????????????????????????????????????????????????? | | ?????????????????????????????????????????????????? | +----------------------------------------------------+ Best States ------------- Heat Dissipation 37 Energy Generation 5 Energy Capacity 100 Matter Stores 300 Matter Capacity 300 Sight Range 16 Terrain Scan Density 10 Evasion (%) 50 Item Schematics ----------------- None Robot Schematics ------------------ None Fabricated ------------ Nothing Repaired ---------- Nothing Studied --------- None Alien Tech Used ----------------- None Achievements -------------- None Challenges ------------ None Game ------ Seed PotentialBurstHammer Manual? 0 Play Time 00:07:18 Cumulative 329.9 hours Start 2026.01.24 @ 17:31:17 End 2026.01.24 @ 17:37:51 Sessions 1 Manual Loads 0 Difficulty Rogue Special Mode None Game No. 400 Rogue 398 Adventurer 2 Explorer 0 Win Type - Total 4 Types 2/0/0/1/1/0/0/0/0/0 Lore% 80 Gallery% 70 Achievement% 61 Wizard Run 0 Options --------- Layout 0 ASCII 0 Keyboard 0 Movement Numpad Keybinds 0 Fullscreen 2 Font 24/Smallcaps Map View 76x50 Zoom Use 0% Tactical HUD 1 Map Filters NONE Filters NONE Steam 1 RUN: 42c5f154-38c9-474d-a5ea-5bd33736b00c